Cogmind - Beta 12 --- EXPLORER MODE // 2023.05.20 @ 17:11:50 Player: Sardaukar Result: Self-destructed Performance ------------- Evolutions (3) 1500 Regions Visited (10) 2000 Robots Destroyed (129) 645 Value Destroyed (4288) 4288 Prototype IDs (33) 660 Alien Tech Used (0) 0 Bonus (340) 340 TOTAL SCORE: 9433 Bonus ------- Follower Combat Kills 66 Aligned with FarCom 300 Friendly Fire -26 Cogmind --------- Core Integrity 161/700 Matter 71/300 Energy 100/100 System Corruption 1% Temperature Cool (9) Movement Core (2450) Ox48 Location -7/Lower Caves Parts ------- > --- POWER (1) -------- (None) > --- PROPULSION (4) --- (None) > --- UTILITY (5) ------ Huge Storage Unit Damper Plating > --- WEAPON (4) ------- Gauss Cannon Gauss Cannon Gauss Cannon > --- INVENTORY (25) --- Cryofiber Web Improved Heat Sink Huge Storage Unit Large Battery (200) Improved Sensor Array Damper Plating Long-range Tractor Beam Gatling Laser Gatling Laser Shock Bomb Launcher Rocket Launcher Peak State ------------ > --- POWER ------------ Antimatter Reactor > --- PROPULSION ------- Heavy Treads Heavy Treads > --- UTILITY ---------- Cryofiber Web Huge Storage Unit Kinecellerator Hardened Light Armor Plating Improved Light Armor Plating > --- WEAPON ----------- XL Autogun Array > --- INVENTORY -------- Nuclear Core Heavy Treads Improved Heat Sink Huge Storage Unit Large Battery High-capacity Matter Pod Damper Plating Damper Plating Hacking Suite Long-range Tractor Beam Gatling Laser Gatling Laser Gauss Cannon Gauss Cannon Gauss Cannon Gauss Cannon Shock Bomb Launcher Rocket Launcher [Rating: 90] Favorites ----------- Power Ion Engine Engine Ion Engine Power Core Nuclear Core Reactor Antimatter Reactor Propulsion Light Treads Treads Light Treads Wheel Compact Wheel Utility Huge Storage Unit Device Tractor Beam Storage Huge Storage Unit Processor Improved Targeting Computer Hackware Hacking Suite Protection Propulsion Shielding Weapon XL Autogun Array Energy Gun Gatling Laser Ballistic Gun XL Autogun Array Ballistic Cannon Improved Light Cannon Launcher Grenade Launcher Build | -11 -10 -10 -10 -9 -8 -7 -7 -7 -7 -7 ------- Run | Jun Mat Min Exi Min Mat Fac Was Fac Low Low Slots Evolved 7 | . 1 . . . 4 2 . . . . Power . | . . . . . . . . . . . Propulsion 2 | . . . . . . 2 . . . . Utility 3 | . 1 . . . 2 . . . . . Weapon 2 | . . . . . 2 . . . . . Parts Attached 72 | 7 12 4 1 2 19 7 7 3 1 9 Power 6 | 1 2 . . . 2 . 1 . . . Engine 4 | 1 2 . . . 1 . . . . . Core 1 | . . . . . 1 . . . . . Reactor 1 | . . . . . . . 1 . . . Propulsion 17 | 2 1 3 . . 5 2 3 . . 1 Treads 16 | 2 1 2 . . 5 2 3 . . 1 Leg . | . . . . . . . . . . . Wheel 1 | . . 1 . . . . . . . . Hover . | . . . . . . . . . . . Flight . | . . . . . . . . . . . Utility 32 | 2 4 . 1 . 11 5 3 3 1 2 Device 11 | . 1 . . . 3 2 3 1 1 . Storage 4 | 1 2 . . . 1 . . . . . Processor 1 | . . . . . 1 . . . . . Hackware 1 | . . . . . . . . 1 . . Protection 15 | 1 1 . 1 . 6 3 . 1 . 2 Artifact . | . . . . . . . . . . . Weapon 17 | 2 5 1 . 2 1 . . . . 6 Energy Gun 2 | . . . . . . . . . . 2 Energy Cannon . | . . . . . . . . . . . Ballistic Gun 3 | 2 . . . . 1 . . . . . Ballistic Cannon 10 | . 5 1 . . . . . . . 4 Launcher 2 | . . . . 2 . . . . . . Special Weapon . | . . . . . . . . . . . Impact Weapon . | . . . . . . . . . . . Slashing Weapon . | . . . . . . . . . . . Piercing Weapon . | . . . . . . . . . . . Special Melee Weapon . | . . . . . . . . . . . Unidentified Prototypes . | . . . . . . . . . . . Parts Lost 8 | . 1 . . . 2 . . . . 5 Power 2 | . 1 . . . . . . . . 1 Propulsion 1 | . . . . . . . . . . 1 Utility 4 | . . . . . 2 . . . . 2 Weapon 1 | . . . . . . . . . . 1 Highest Loss Streak 2 | . 1 . . . 2 . . . . 2 To Critical Strikes . | . . . . . . . . . . . Average Slot Usage (%) 81 | . 95 99 100 100 71 78 66 64 64 62 Engine 5 | . 11 12 12 12 . . . . . . Core 2 | . . . . . 7 7 3 . . . Reactor 1 | . . . . . . . 3 7 7 6 Treads 19 | . 21 21 25 25 16 28 16 14 14 12 Device 10 | . 9 12 12 12 8 11 12 11 10 10 Storage 9 | . 12 12 12 12 7 7 7 7 7 7 Processor 1 | . . . . . 4 . . . . . Hackware 1 | . . . . . . . . 3 7 5 Protection 13 | . 15 12 12 12 16 16 15 12 10 7 Ballistic Gun 5 | . 5 . . . 7 7 7 7 7 5 Ballistic Cannon 9 | . 18 25 25 6 . . . . . 5 Launcher 1 | . . . . 18 . . . . . . Naked Turns . | . . . . . . . . . . . Heaviest Build 132 | 22 95 96 98 98 116 117 124 124 123 132 Greatest Support 140 | 40 40 40 40 40 40 80 140 140 140 140 Greatest Overweight (x) 43 | 1 31 5 2 2 2 1 1 . . 43 Average Overweight (x) 1 | . 1 2 2 2 2 1 . . . . Largest Inventory Capacity 25 | 10 25 25 25 25 25 25 25 25 25 25 Average Capacity 24 | 8 20 25 25 25 24 25 25 25 25 25 Most Carried 25 | 4 19 25 25 25 25 25 25 25 25 25 Average Carried 21 | 1 13 22 24 24 23 23 24 25 24 22 Final Capacity 25 | 10 25 25 25 25 25 25 25 25 25 25 Final Carried 25 | 4 19 25 24 25 23 24 25 25 25 14 Class Distribution -------------------- 46% | Hacker-Mutant 36% | Hacker-Tank 10% | Hacker-Skirmisher 6% | Hacker-Gunner Dominant Class ---------------- Hacker-Mutant | -10/Materials Hacker-Mutant | -10/Mines Hacker-Mutant | -10/Exiles Hacker-Mutant | -9/Mines Hacker-Tank | -8/Materials Hacker-Tank | -7/Factory Hacker-Tank | -7/Waste Hacker-Tank | -7/Factory Hacker-Gunner | -7/Lower Caves Hacker-Gunner | -7/Lower Caves Resources | -11 -10 -10 -10 -9 -8 -7 -7 -7 -7 -7 ----------- Run | Jun Mat Min Exi Min Mat Fac Was Fac Low Low Matter Collected 4399 | 196 515 211 150 134 1527 286 559 488 10 323 Remotely 2287 | . 277 211 . 134 1125 200 20 320 . . Salvage Created 6828 | 80 414 94 . 12 2642 451 1387 1092 . 656 Parts 288 | 1 23 7 . 5 135 19 23 50 . 25 Haulers Intercepted 6 | . 2 . . . 4 . . . . . Recyclers Shooed . | . . . . . . . . . . . Parts Field Recycled . | . . . . . . . . . . . Retrieved Matter . | . . . . . . . . . . . Parts Self-Destructed . | . . . . . . . . . . . Prevented . | . . . . . . . . . . . Kills | -11 -10 -10 -10 -9 -8 -7 -7 -7 -7 -7 ------- Run | Jun Mat Min Exi Min Mat Fac Was Fac Low Low Combat Hostiles Destroyed 88 | . 7 4 . 3 33 4 5 17 . 15 Guns 70 | . 5 . . . 33 4 5 17 . 6 Cannons 16 | . 2 4 . 1 . . . . . 9 AOE 2 | . . . . 2 . . . . . . Classes Destroyed 14 | 1 5 1 . . 4 1 1 . . 1 Worker 5 | . 2 . . . 2 . . 1 . . Builder 3 | . 1 . . . 1 1 . . . . Hauler 6 | . 2 . . . 4 . . . . . Recycler 13 | 1 . 1 . . 7 2 . 2 . . Operator 3 | . . . . . 2 1 . . . . Watcher 11 | . 3 . . . 5 1 . 2 . . Swarmer 10 | . . 2 . 3 2 . . 2 . 1 Grunt 49 | . 7 2 . . 21 2 . 11 . 6 Brawler 3 | . . . . . . . . . . 3 Duelist 5 | . . . . . 1 . . . . 4 Sentry 13 | . . . . . 8 . . 4 . 1 Hunter 2 | . . . . . 1 1 . . . . Programmer 1 | . . . . . . 1 . . . . Compactor 5 | . . . . . . . 5 . . . Best Kill Streak 7 | 1 5 2 . 3 7 3 1 6 . 5 Combat Bots Only 5 | . 2 2 . 3 5 3 1 4 . 5 Max Kills in Single Turn 2 | 1 1 1 . 2 2 1 1 2 . 1 Gunslinging . | . . . . . . . . . . . Exploded 2 | . . . . 2 . . . . . . Melee . | . . . . . . . . . . . Uniques/NPCs Destroyed . | . . . . . . . . . . . Combat | -11 -10 -10 -10 -9 -8 -7 -7 -7 -7 -7 -------- Run | Jun Mat Min Exi Min Mat Fac Was Fac Low Low Damage Taken 3494 | . 221 67 . 58 520 40 . 185 . 2403 Core 662 | . 26 9 . 4 84 10 . 6 . 523 Absorbed by Shields . | . . . . . . . . . . . Redirected to Shielding 39 | . 21 8 . . 10 . . . . . Regen/Repaired (Parts) 168 | . . . . . 168 . . . . . Core Remaining (%) 89 | 100 . . . 84 84 . . . . . Volleys Fired 230 | 2 37 9 . 5 68 15 32 29 . 33 Largest 4 | 2 2 2 . 1 1 1 1 1 . 4 Hottest 256 | 40 78 83 . 44 60 60 60 60 . 256 Shots Fired 306 | 4 74 18 . 5 69 15 32 30 . 59 Gun 202 | 4 30 . . . 69 15 32 30 . 22 Cannon 101 | . 44 18 . 2 . . . . . 37 Launcher 3 | . . . . 3 . . . . . . Special . | . . . . . . . . . . . Kinetic 293 | 4 74 18 . 2 69 15 32 30 . 49 Thermal 10 | . . . . . . . . . . 10 Explosive 3 | . . . . 3 . . . . . . Electromagnetic . | . . . . . . . . . . . Robot Hit Streak 36 | 3 19 17 . 1 36 21 32 32 . 26 Robot Miss Streak 4 | . 2 1 . 3 3 2 3 4 . 2 Penetration Max 1 | . . . . . . . . . . 1 Secondary Targets . | . . . . . . . . . . . Shots Hit Robots 260 | 3 55 15 . 1 66 12 32 28 . 48 Core Hits 198 | 2 22 6 . 4 76 13 15 32 . 28 Critical Kills . | . . . . . . . . . . . Critical Parts Destroyed . | . . . . . . . . . . . Critical Strikes 3 | . . . . . . . . . . 3 Blast 3 | . . . . . . . . . . 3 Melee Attacks . | . . . . . . . . . . . Impact . | . . . . . . . . . . . Slashing . | . . . . . . . . . . . Piercing . | . . . . . . . . . . . Sneak Attacks . | . . . . . . . . . . . Combat Hostiles . | . . . . . . . . . . . Follow-up Attacks . | . . . . . . . . . . . Damage Inflicted 13548 | 47 980 302 . 203 4361 954 2922 1715 . 2064 Guns 11506 | 47 306 . . . 4361 954 2922 1715 . 1201 Cannons 1865 | . 674 302 . 26 . . . . . 863 Explosions 159 | . . . . 159 . . . . . . Melee . | . . . . . . . . . . . Ramming 18 | . . . . 18 . . . . . . Kinetic 13152 | 47 980 302 . 26 4361 954 2922 1715 . 1845 Thermal 219 | . . . . . . . . . . 219 Explosive 159 | . . . . 159 . . . . . . Electromagnetic . | . . . . . . . . . . . Impact . | . . . . . . . . . . . Slashing . | . . . . . . . . . . . Piercing . | . . . . . . . . . . . Highest Corruption 4 | . 1 1 1 1 4 . . 1 1 1 Average Corruption 1 | . 1 1 1 1 3 . . 1 1 1 Corruption Purged . | . . . . . . . . . . . Corruption Blocked . | . . . . . . . . . . . Effects 77 | . 16 8 6 2 32 . . 7 2 4 Message Errors 16 | . 4 1 1 1 5 . . 2 1 1 Matter Fused 25 | . 5 4 2 . 11 . . 1 . 2 Heat Flow Errors 8 | . 1 . 1 . 5 . . 1 . . Energy Discharges 11 | . 2 2 . 1 5 . . . . 1 Parts Fused 1 | . 1 . . . . . . . . . Data Loss (minor) 9 | . 2 1 1 . 4 . . 1 . . Data Loss (major) 2 | . 1 . 1 . . . . . . . Misfires 2 | . . . . . 1 . . 1 . . Alerts 3 | . . . . . 1 . . 1 1 . Overload Shots . | . . . . . . . . . . . Overflow Damage 34 | . 27 . . 7 . . . . . . Projectiles 27 | . 27 . . . . . . . . . Explosions 7 | . . . . 7 . . . . . . Melee . | . . . . . . . . . . . Knockbacks 11 | . 4 2 . . . . . . . 5 Impact . | . . . . . . . . . . . Kinetic 11 | . 4 2 . . . . . . . 5 Secondary . | . . . . . . . . . . . Self-Inflicted Damage 18 | . . . . 18 . . . . . . Shots 1 | . . . . 1 . . . . . . Rammed 1 | . . . . 1 . . . . . . Targets Rammed 1 | . . . . 1 . . . . . . Kicked . | . . . . . . . . . . . Crushed . | . . . . . . . . . . . Highest Temperature 1035 | . 313 108 275 20 324 178 340 261 . 1035 Average Temperature 168 | . 108 36 139 11 81 59 162 96 . 429 Received Heat Transfer 1236 | . 147 45 . . 126 . . 57 . 861 Effects 63 | . 1 . . . 1 . 4 . . 57 Shutdowns 7 | . . . . . . . . . . 7 Energy Bleed 6 | . 1 . . . . . 1 . . 4 Interference 11 | . . . . . . . 3 . . 8 Matter Decay 6 | . . . . . . . . . . 6 Short Circuit 6 | . . . . . . . . . . 6 Damage (minor) 7 | . . . . . 1 . . . . 6 Damage (major) 17 | . . . . . . . . . . 17 Damage (core) 3 | . . . . . . . . . . 3 Siege Activations . | . . . . . . . . . . . Robots Corrupted . | . . . . . . . . . . . Combat Hostiles . | . . . . . . . . . . . Parts Fried . | . . . . . . . . . . . Impact Corruptions . | . . . . . . . . . . . Robots Melted . | . . . . . . . . . . . Combat Hostiles . | . . . . . . . . . . . Parts Melted . | . . . . . . . . . . . Heat Transferred 500 | . . . . . . . . . . 500 Parts Sabotaged . | . . . . . . . . . . . Parts Stolen . | . . . . . . . . . . . Parts Stripped . | . . . . . . . . . . . Power Chain Reactions . | . . . . . . . . . . . Missiles Intercepted . | . . . . . . . . . . . Alert | -11 -10 -10 -10 -9 -8 -7 -7 -7 -7 -7 ------- Run | Jun Mat Min Exi Min Mat Fac Was Fac Low Low Peak Influence 344 | 5 144 106 . 91 338 102 41 344 . . Initial 21 | . 2 . . . . . 20 21 . . Average 57 | 1 33 27 . 35 91 37 37 83 . . Maximum Alert Level 1 | . . . . . 1 . . 1 . . Low Security (%) 94 | 100 100 100 . 100 87 100 100 82 . . Level 1 5 | . . . . . 12 . . 17 . . Level 2 . | . . . . . . . . . . . Level 3 . | . . . . . . . . . . . Level 4 . | . . . . . . . . . . . Level 5 . | . . . . . . . . . . . High Security . | . . . . . . . . . . . Max Security . | . . . . . . . . . . . Squads Dispatched 19 | . 2 . . . 9 3 . 4 . 1 Investigation 12 | . 2 . . . 6 1 . 3 . . Extermination 1 | . . . . . . . . 1 . . Reinforcement 3 | . . . . . 1 2 . . . . Assault 2 | . . . . . 1 . . . . 1 Garrison 1 | . . . . . 1 . . . . . Intercept . | . . . . . . . . . . . Searches Triggered . | . . . . . . . . . . . Construction Impeded 1 | . . . . . . 1 . . . . Haulers Reinforced . | . . . . . . . . . . . Active Scanning Responses . | . . . . . . . . . . . Cargo Convoy Interrupts . | . . . . . . . . . . . Stealth | -11 -10 -10 -10 -9 -8 -7 -7 -7 -7 -7 --------- Run | Jun Mat Min Exi Min Mat Fac Was Fac Low Low Distress Signals 4 | . . . . . 4 . . . . . Communications Jammed . | . . . . . . . . . . . Distress Signals . | . . . . . . . . . . . Times Spotted 108 | . 13 4 . 3 41 6 5 16 . 20 Peak Tracking Total 12 | . 2 1 . 3 5 3 1 3 . 12 Tactical Retreats 4 | . 1 . . . . . . . . 3 Traps | -11 -10 -10 -10 -9 -8 -7 -7 -7 -7 -7 ------- Run | Jun Mat Min Exi Min Mat Fac Was Fac Low Low Traps Triggered 16 | . 6 . . . 2 2 . 6 . . Indirectly . | . . . . . . . . . . . Trap Hack Attempts . | . . . . . . . . . . . Triggered . | . . . . . . . . . . . Disarmed . | . . . . . . . . . . . Reprogrammed . | . . . . . . . . . . . Reused . | . . . . . . . . . . . Traps Extracted . | . . . . . . . . . . . Installed . | . . . . . . . . . . . Triggered 2 | . . . . . . . . . . 2 Machines | -11 -10 -10 -10 -9 -8 -7 -7 -7 -7 -7 ---------- Run | Jun Mat Min Exi Min Mat Fac Was Fac Low Low Machines Disabled 6 | . 1 . . . 2 2 . 1 . . Max in Single Turn 2 | . 1 . . . 1 2 . 1 . . Garrison Access 1 | . . . . . 1 . . . . . Machines Repaired . | . . . . . . . . . . . Machines Sabotaged . | . . . . . . . . . . . Overloaded Fab Kills . | . . . . . . . . . . . Hacking | -11 -10 -10 -10 -9 -8 -7 -7 -7 -7 -7 --------- Run | Jun Mat Min Exi Min Mat Fac Was Fac Low Low Machines Accessed 27 | . 6 1 2 . 11 2 . 5 . . Terminals 15 | . 4 . . . 9 . . 2 . . Fabricators 2 | . . . . . . . . 2 . . Repair Stations 1 | . . . . . 1 . . . . . Recycling Units 6 | . 2 . . . 1 2 . 1 . . Scanalyzers . | . . . . . . . . . . . Garrison Access . | . . . . . . . . . . . Total Hacks 88 | . 27 1 5 . 39 5 . 11 . . Successful 47 | . 13 1 5 . 20 3 . 5 . . Failed 41 | . 14 . . . 19 2 . 6 . . Catastrophic 4 | . . . . . 4 . . . . . Database Lockouts . | . . . . . . . . . . . Manual 48 | . 15 . 1 . 22 5 . 5 . . Terminals 63 | . 21 . . . 36 . . 6 . . Fabricators 2 | . . . . . . . . 2 . . Repair Stations 2 | . . . . . 2 . . . . . Recycling Units 15 | . 6 . . . 1 5 . 3 . . Scanalyzers . | . . . . . . . . . . . Garrison Access . | . . . . . . . . . . . Terminal Hacks 33 | . 10 1 5 . 16 . . 1 . . Record 4 | . . . 4 . . . . . . . Part Schematic 3 | . 2 . . . 1 . . . . . Robot Analysis 5 | . 2 . . . 3 . . . . . Prototype ID Bank 8 | . 2 . . . 5 . . 1 . . Open Door 1 | . . 1 . . . . . . . . Terminal Index 1 | . . . . . 1 . . . . . Alert Level 3 | . 2 . . . 1 . . . . . Unreport Threat 1 | . . . . . 1 . . . . . Investigation Status 1 | . 1 . . . . . . . . . Recall Investigation 2 | . . . . . 2 . . . . . Recall Assault 1 | . . . . . 1 . . . . . Registered Components 1 | . 1 . . . . . . . . . Zone Layout 1 | . . . . . 1 . . . . . EX-Prototype ID Bank 1 | . . . 1 . . . . . . . Fabricator Hacks 2 | . . . . . . . . 2 . . Network Status 1 | . . . . . . . . 1 . . Build 1 | . . . . . . . . 1 . . Repair Station Hacks 2 | . . . . . 2 . . . . . Scan Component 1 | . . . . . 1 . . . . . Repair 1 | . . . . . 1 . . . . . Recycling Unit Hacks . | . . . . . . . . . . . Scanalyzer . | . . . . . . . . . . . Garrison Access Hacks . | . . . . . . . . . . . Unauthorized Hacks 10 | . 3 . . . 2 3 . 2 . . Terminals 1 | . . . . . 1 . . . . . Botnet 1 | . . . . . 1 . . . . . Fabricators . | . . . . . . . . . . . Repair Stations . | . . . . . . . . . . . Recycling Units 9 | . 3 . . . 1 3 . 2 . . Reject 4 | . 1 . . . 1 1 . 1 . . Recyclers 1 | . . . . . . . . 1 . . Mask 4 | . 2 . . . . 2 . . . . Scanalyzers . | . . . . . . . . . . . Garrison Access . | . . . . . . . . . . . Data Cores Recovered . | . . . . . . . . . . . Used . | . . . . . . . . . . . Hacking Detections 23 | . 6 . . . 11 2 . 4 . . Full Trace Events 14 | . 4 . . . 8 . . 2 . . Feedback Events . | . . . . . . . . . . . Feedback Blocked . | . . . . . . . . . . . Robot Schematics Acquired . | . . . . . . . . . . . Robots Built 3 | . . . . . . . . 3 . . Authchips . | . . . . . . . . . . . Time 67 | . . . . . . . . 67 . . Total Robot Build Rating 12 | . . . . . . . . 12 . . Part Schematics Acquired 3 | . 2 . . . 1 . . . . . Parts Built . | . . . . . . . . . . . Authchips . | . . . . . . . . . . . Time . | . . . . . . . . . . . Total Part Build Rating . | . . . . . . . . . . . Parts Repaired 1 | . . . . . 1 . . . . . Time 26 | . . . . . 26 . . . . . Parts Recycled . | . . . . . . . . . . . Recycled Matter . | . . . . . . . . . . . Retrieved Matter . | . . . . . . . . . . . Retrieved Components . | . . . . . . . . . . . Parts Scanalyzed . | . . . . . . . . . . . Part Schematics Acquired . | . . . . . . . . . . . Parts Damaged . | . . . . . . . . . . . Bothacking | -11 -10 -10 -10 -9 -8 -7 -7 -7 -7 -7 ------------ Run | Jun Mat Min Exi Min Mat Fac Was Fac Low Low Used RIF Installer . | . . . . . . . . . . . Robots Hacked . | . . . . . . . . . . . Non-combat . | . . . . . . . . . . . Combat . | . . . . . . . . . . . Robot Hacks Applied . | . . . . . . . . . . . Relay Couplers Released 1 | . . . . . 1 . . . . . Machine Destruction 1 | . . . . . 1 . . . . . Fabnet Peak Effective % . | . . . . . . . . . . . Robots Rewired . | . . . . . . . . . . . Allies Hacked . | . . . . . . . . . . . Hacks Repelled . | . . . . . . . . . . . Allies | -11 -10 -10 -10 -9 -8 -7 -7 -7 -7 -7 -------- Run | Jun Mat Min Exi Min Mat Fac Was Fac Low Low Total Allies 6 | . . . . 3 . . . 3 . . Largest Group 3 | . . . . 3 3 . . 3 . . Highest-Rated Group 60 | . . . . 40 40 . . 60 . . Highest-Rated Ally 20 | . . . . 16 16 . . 20 . . Total Orders . | . . . . . . . . . . . Ally Attacks 32 | . . . . . 24 . . 8 . . Total Damage 374 | . . . . . 239 . . 135 . . Kills 3 | . . . . . 3 . . . . . Allies Corrupted . | . . . . . . . . . . . Allies Melted . | . . . . . . . . . . . Intel | -11 -10 -10 -10 -9 -8 -7 -7 -7 -7 -7 ------- Run | Jun Mat Min Exi Min Mat Fac Was Fac Low Low Robot Analysis Total 5 | . 2 . . . 3 . . . . . Derelict Logs Recovered 1 | . . . . . . . . . . 1 Drone Launches . | . . . . . . . . . . . Drone Recoveries . | . . . . . . . . . . . Exploration | -11 -10 -10 -10 -9 -8 -7 -7 -7 -7 -7 ------------- Run | Jun Mat Min Exi Min Mat Fac Was Fac Low Low Turns Passed 10105 | 91 1870 1142 767 677 2708 561 312 937 346 694 Spaces Moved 3675 | 48 644 390 239 207 775 209 144 525 215 279 Core 8 | 5 1 . . . . . . . . 2 Treads 3554 | 43 643 277 239 207 775 209 144 525 215 277 Legs . | . . . . . . . . . . . Wheels 113 | . . 113 . . . . . . . . Hover . | . . . . . . . . . . . Flight . | . . . . . . . . . . . Fastest Speed 50 | 50 160 175 320 320 320 242 160 160 160 160 Average Speed 250 | 149 261 283 320 320 322 242 174 160 160 173 Slowest Speed 2200 | 160 1600 480 320 320 325 242 243 160 160 2200 Overloaded Moves . | . . . . . . . . . . . Propulsion Burnouts . | . . . . . . . . . . . Robots Hopped 2 | . . 2 . . . . . . . . Cave-ins Triggered 1 | . . . . . 1 . . . . . Exploration Rate (%) 50 | 5 92 85 59 52 70 6 80 20 44 41 Regions Visited 10 Branch Regions 5 Pre-discovered Areas 1 | . . . 1 . . . . . . . Known Exits Taken 8 | 1 1 1 1 1 1 . . 1 1 . Unknown Exits Taken . | . . . . . . . . . . . Scrap Searched 6 | . . . . 1 . . . . 3 2 Spaces Dug 12 | . . . . 5 3 . . 4 . . Terrain Destroyed 115 | . 3 1 . 23 46 3 6 22 . 11 Melee . | . . . . . . . . . . . Projectile 93 | . 3 1 . 1 46 3 6 22 . 11 AOE 22 | . . . . 22 . . . . . . Terrain Rammed . | . . . . . . . . . . . Walls Destroyed . | . . . . . . . . . . . Machines Disabled . | . . . . . . . . . . . Actions | -11 -10 -10 -10 -9 -8 -7 -7 -7 -7 -7 --------- Run | Jun Mat Min Exi Min Mat Fac Was Fac Low Low Total 4450 | 60 756 408 245 215 1005 265 210 621 218 447 Wait 334 | . 44 3 . . 63 28 10 65 . 121 Move 3662 | 47 643 385 238 206 774 209 143 524 214 279 Hop 2 | . . 2 . . . . . . . . Pick Up 80 | 4 15 4 1 1 47 4 3 . 1 . Fast Attach 23 | 7 8 1 . . 3 . 3 . 1 . Attach 17 | . 1 1 . . 6 3 . . . 6 Detach 4 | . 2 1 . . . 1 . . . . Swap 32 | . 3 2 1 2 10 4 4 3 . 3 Drop 65 | . 3 . 5 . 34 1 15 . 2 5 Fire 230 | 2 37 9 . 5 68 15 32 29 . 33 Melee . | . . . . . . . . . . . Ram . | . . . . . . . . . . . Kick . | . . . . . . . . . . . Crush 1 | . . . . 1 . . . . . . Escape Stasis . | . . . . . . . . . . . Rewire . | . . . . . . . . . . . Trap . | . . . . . . . . . . . Miscellaneous . | . . . . . . . . . . . Route ------- -11/Junkyard -10/Materials (discovered 5 exits: *Mat x3 / *Min x2) -10/Mines (discovered 3 exits: *Mat x2 / *Exi) -10/Exiles -9/Mines -8/Materials -7/Factory -7/Waste -7/Factory (discovered 2 exits: *Fac / *Low) -7/Lower Caves -7/Lower Caves History --------- Turn | Location | Event 4 | -11/Junkyard | Identified exit to Materials 4 | -11/Junkyard | Discovered exit to Materials (range 16) 92 | -11/Junkyard | Entered Materials 92 | -10/Materials | Evolved 1 slot: Utility x1 303 | -10/Materials | Build established: Hacker-Mutant 329 | -10/Materials | Identified exit to Materials 329 | -10/Materials | Discovered exit to Materials (range 11) 465 | -10/Materials | Identified exit to Mines 465 | -10/Materials | Discovered exit to Mines (range 12) 1025 | -10/Materials | Discovered exit to Materials (range 15) 1345 | -10/Materials | Discovered exit to Mines (range 9) 1438 | -10/Materials | Discovered exit to Materials (range 5) 1962 | -10/Materials | Entered Mines 1984 | -10/Mines | Met a Derelict bent on vengeance 2129 | -10/Mines | Discovered exit to Materials (range 4) 2158 | -10/Mines | Found a damaged Exp. Sensor Array with a note attached 2165 | -10/Mines | Found Prototype Device 2184 | -10/Mines | Met a Derelict who couldn't figure out how to use a Trap Extractor 2488 | -10/Mines | Discovered exit to Materials (range 9) 2648 | -10/Mines | Received a Rocket Launcher from a helpful Derelict 3091 | -10/Mines | Deemed a non-threat by the Exiles lab entrance 3091 | -10/Mines | Identified exit to Exiles 3091 | -10/Mines | Discovered exit to Exiles (range 5) 3104 | -10/Mines | Entered Exiles 3181 | -10/Exiles | Met 8R-AWN 3236 | -10/Exiles | Met EX-HEX 3328 | -10/Exiles | Met EX-BIN 3370 | -10/Exiles | Aligned with FarCom system 3373 | -10/Exiles | Given EX-Vault access code 3447 | -10/Exiles | Opened EX-Vault 3470 | -10/Exiles | Found XL Autogun Array 3535 | -10/Exiles | Warned to stay clear of 0b10 Research branches 3628 | -10/Exiles | Met EX-DEC 3641 | -10/Exiles | Learned location of Zion (-7) 3829 | -10/Exiles | Identified exit to Mines 3829 | -10/Exiles | Discovered exit to Mines (range 12) 3871 | -10/Exiles | Left Exiles lab with XL Autogun Array 3871 | -10/Exiles | Entered Mines 4317 | -9/Mines | Assisted by bots powering up and referring to "LRC-V3" 4516 | -9/Mines | Identified exit to Materials 4516 | -9/Mines | Discovered exit to Materials (range 5) 4548 | -9/Mines | Entered Materials 4548 | -8/Materials | Accompanied by 3 allies 4548 | -8/Materials | Evolved 4 slots: Utility x2, Weapon x2 5024 | -8/Materials | Build established: Hacker-Tank 5414 | -8/Materials | Build established: Hacker-Skirmisher 5480 | -8/Materials | Identified exit to Factory 5480 | -8/Materials | Discovered exit to Factory (range 16) 5483 | -8/Materials | Garrison activated, responded to threat 6118 | -8/Materials | Build established: Hacker-Tank 6250 | -8/Materials | Crushed by falling debris 6731 | -8/Materials | Repaired Huge Storage Unit 7256 | -8/Materials | Entered Factory 7256 | -7/Factory | Evolved 2 slots: Propulsion x2 7817 | -7/Factory | Sucked down chute 7817 | -7/Factory | Entered Waste 7837 | -7/Waste | Spotted C-40 Crusher 7853 | -7/Waste | Destroyed C-40 Crusher 7861 | -7/Waste | Spotted C-40 Crusher 7878 | -7/Waste | Destroyed C-40 Crusher 7912 | -7/Waste | Destroyed C-40 Crusher 7913 | -7/Waste | Found Damper Plating 7932 | -7/Waste | Found Damper Plating 7941 | -7/Waste | Spotted C-40 Crusher 7947 | -7/Waste | Destroyed C-40 Crusher 7951 | -7/Waste | Spotted C-40 Crusher 7954 | -7/Waste | Spotted C-40 Crusher 7981 | -7/Waste | Destroyed C-40 Crusher 8113 | -7/Waste | Identified exit to Factory 8113 | -7/Waste | Discovered exit to Factory (range 11) 8129 | -7/Waste | Entered Factory 8603 | -7/Factory | Identified exit to Lower Caves 8603 | -7/Factory | Discovered exit to Lower Caves (range 9) 8736 | -7/Factory | Fabricated B-48 Gladiator? 8752 | -7/Factory | Identified exit to Factory 8752 | -7/Factory | Discovered exit to Factory (range 16) 9066 | -7/Factory | Entered Lower Caves 9265 | -7/Lower Caves | Encountered a Warlord checkpoint 9392 | -7/Lower Caves | Identified exit to Lower Caves 9392 | -7/Lower Caves | Discovered exit to Lower Caves (range 14) 9412 | -7/Lower Caves | Entered another Lower Caves area 9525 | -7/Lower Caves | Build established: Hacker-Gunner 9547 | -7/Lower Caves | Attracted the attention of an 0b10 checkpoint 9785 | -7/Lower Caves | Spotted B-75 Beast 9916 | -7/Lower Caves | Attracted the attention of an 0b10 outpost 9966 | -7/Lower Caves | Core integrity fell below 50% 10106 | -7/Lower Caves | Self-destructed Last Messages --------------- 10051_ Penetrated by Slug. 10051_ Antimatter Reactor destroyed. 10052_ Overheating: Gauss Cannon damaged (-24). 10052_ Overheating: Broken Hvy. Treads damaged (-10). 10052_ Overheating: Huge Storage Unit damaged (-18). 10052_ Y-64 Sentinel Imp. Treads blasted off. 10053_ Overheating: System interference. 10053_ Gauss Cannon temporarily disabled. 10054_ Penetrated by Slug. 10058_ Overheating: Gauss Cannon damaged (-9). 10060_ Penetrated by Slug. 10062_ Overheating: Broken Hvy. Treads damaged (-3). 10062_ Overheating: Gauss Cannon damaged (-2). 10062_ Overheating: Huge Storage Unit damaged (-29). 10063_ Overheating: Damper Plating damaged (-440). 10066_ Broken Hvy. Treads destroyed. 10071_ Penetrated by Slug. 10100_ Slug penetrates Wall. 10104_ M-28 Smith repairs Y-64 Sentinel. 10106_ M-28 Smith fits Backup Propulsion III on Y-64 Sentinel. Map ----- +----------------------------------------------------+ | | | | | | | | | | | | | | | ?????????????????????????????????????????????????? | | ?????????????????????????????????????????????????? | | ?????????????????????????????????????????????????? | | ?????????????????????????????????????????????????? | | ?????????????????????????????????????????????????? | | ?????????????????????????????????????????????????? | | ?????????????????????????????????????????????????? | | ?????????????????????????????????????????????????? | | ?????????????????????????????????????????????????? | | ?????????????????????????????????????????????????? | | ?????????????????????????????????????????????????? | | ???????????????????????##????????????????????????? | | ???????????????????????# ????????????????????????? | | ???????????????????????# ???#????????????????????? | | ??????????????##########;#? #????????????????????? | | ?########?????# ![##;##???????????????????? | | ?# ##???## ########%=%% ###?????????????????? | | ?# ##### #??????#/=!= ;###???????????????? | | ?# #??????#%@!% %!%%![%% ????????? | | ## ## #??????#=!=## =%% #????????????? | | ### #" ????#[=##?? %#????????????? | | ## ### ##%Y##????? #???????????? | | # ### # =%*[m#??????? #???????????? | | # ###?# !%%%#????????? ##???????????? | | ## ##???# /!%#???????????????????????? | | ?####????## ###"#%;;##???????????????????????? | | ?####?????# ####?#### #?????????????????????????? | | # #????? #???????##??????????????????????????? | | #????# #???????????????????????????????????? | | #????# ???????????????????????????????????? | | #???? #???????????????????????????????????? | | ##???## #???????????????????????????????????? | | #????# ##??????????????????????????????????? | | #????# #??????????????????????????????????? | | ?????## #??????????????????????????????????? | | #??????? #??????????????????????????????????? | | #????????? #??????????????????????????????????? | | ?????????? ???????????????????????????????????? | | #????????? #???#######???????????????? ??????? | | ###???????# #???? "" "#?????????????? ??????? | | ##??????# #???? """ #?????????????? ??????? | | % ######## #????" "" #??#??????????#? ??????? | | # #??### #?? #??????????# ??????? | +----------------------------------------------------+ Best States ------------- Heat Dissipation 45 Energy Generation 21 Energy Capacity 325 Matter Stores 300 Matter Capacity 300 Sight Range 16 Robot Scan Range 15 Terrain Scan Density 10 Base Temperature (-) 100 Armor Coverage 1600 Resistance: KI 35 Resistance: TH 35 Resistance: EX 35 Resistance: EM 100 Resistance: I 35 Resistance: S 35 Resistance: P 35 Propulsion Shielding 33 Evasion (%) 40 Targeting Accuracy 6 Recoil Reduction 4 Kinecelleration 30 Offensive Hacking 30 Item Schematics ----------------- Huge Storage Unit | -10/Materials | Hacked Lrg. Storage Unit | -10/Materials | Hacked Lrn. Tractor Beam | -8/Materials | Hacked Robot Schematics ------------------ None Fabricated ------------ B-48 Gladiator | x3 | -7/Factory | Preloaded Alien Tech Used ----------------- None Achievements -------------- None Challenges ------------ None Game ------ Seed IntegratedArmoredGenerator Manual? 0 Play Time 01:12:55 Cumulative 317.1 hours Start 2023.05.20 @ 15:48:50 End 2023.05.20 @ 17:11:50 Sessions 3 Manual Loads 0 Difficulty Explorer Special Mode None Game No. 100 Rogue 7 Adventurer 71 Explorer 22 Win Type - Total 9 Types 8/0/1/0/0/0/0/0/0 Lore% 71 Gallery% 78 Achievement% 65 Wizard Run 0 Options --------- ASCII 0 Keyboard 0 Movement Mouse Keybinds 0 Fullscreen 2 Font 20/Terminus Map View 66x50 Tactical HUD 1 Map Filters NONE Filters NONE Steam 1 RUN: c0fba3fe-801a-440f-b146-8087f2336e26